Workbook

Sheet Check List PAPP
A1: CHECK - LIST PARA ANÁLISE DE PPAP | D1: Cliente:
D2: Código :
D3: N.º Desenho :
D4: Data :
A5: 1 | B5: CERTIFICADO DE SUBMISSÃO DA PEÇA
B6: Pergunta | C6: SIM | D6: NÃO | E6: Comentários / Ação Requerida
A7: 1.1 | B7: As informações sobre o produto estão corretamente declaradas? - nº da peça - descrição - alteração / índice do desenho
A8: 1.2 | B8: O peso da peça está declarado com 3 casas decimais após a virgula (0,000)?
A9: 1.3 | B9: A razão de produção / 8 horas está declarada?
A10: 1.4 | B10: As demais informações aplicáveis no Certificado de submissão estão corretamente declaradas?
A11: 2 | B11: FLUXOGRAMA DO PROCESSO
B12: Pergunta | C12: SIM | D12: NÃO | E12: Comentários / Ação Requerida
A13: 2.1 | B13: As informações sobre o produto estão corretamente declaradas? - nº da peça - descrição - alteração / índice do desenho
A14: 2.2 | B14: O fluxo do processo contempla as etapas a partir do recebimento da matéria-prima até a Expedição. Ou à Auditoria de Produto (quando aplicável)
A15: 3 | B15: FMEA DO PROCESSO
B16: Pergunta | C16: SIM | D16: NÃO | E16: Comentários / Ação Requerida
A17: 3.1 | B17: As informações sobre o produto estão corretamente declaradas? - nº da peça - descrição - alteração/ïndice do desenho
A18: 3.2 | B18: O FMEA foi elaborado mantendo-se a mesma sequência de atividades declaradas no fluxo de processo ?
A19: 3.3 | B19: As simbologias estão declaradas?
A20: 3.4 | B20: O FMEA contempla os estudos de dos modo de falhas para as etapas a partir do recebimento da matéria-prima até a Expedição.
A21: 3.5 | B21: Foram designadas ações corretivas apropriadas para os números de prioridade de risco elevado? Nota: Quando o valor de ocorrência for > que 5 deve-se prover ações de melhoria e quando a severidade for >7 deve-se inserir a simbologia de característica crítica / significativa e ter ações.
A23: 4 | B23: PLANO DE CONTROLE
B24: Pergunta | C24: SIM | D24: NÃO | E24: Comentários / Ação Requerida
A25: 4.1 | B25: As informações sobre o produto estão corretamente declaradas? - nº da peça - descrição - alteração/ïndice do desenho
A26: 4.2 | B26: O Plano de Controle foi elaborado mantendo-se a mesma sequência de atividades declaradas no fluxo e FMEA de processo ?
A27: 4.3 | B27: O Plano de Controle contempla controle para as etapas a partir do recebimento da matéria-prima até a Expedição? Incluindo ensaios de Lay-out e Auditoria de Produto (quando aplicável)
A28: 4.4 | B28: A resolucão dos equipamentos utilizados para o controle está declarada ?
A29: 4.5 | B29: As simbologias estão declaradas?
A30: 4.6 | B30: Há controle para todas as características e ?
A31: 4.7 | B31: Está definido o controle dos parâmetros de processo da fabricação do produto?
A32: 5 | B32: RELATÓRIO DIMENSIONAL
B33: Pergunta | C33: SIM | D33: NÃO | E33: Comentários / Ação Requerida
A34: 5.1 | B34: Há desenho Mapeado?
A35: 5.2 | B35: As informações sobre o produto estão corretamente declaradas? - nº da peça - descrição - alteração / índice do desenho
A36: 5.3 | B36: As especificações estão conforme desenho?
A37: 5.4 | B37: As simbologias estão declaradas?
A38: 5.5 | B38: Os meio de medição utilizados estão declarados e são adequados para a verificação?
A39: 5.6 | B39: Se o dimensional apresentado foi realizado por terceiros o mesmo é credenciado e/ou tem seus padrões rastreáveis?
A40: 5.7 | B40: Os resultados mínimos e máximos estão declarados para todas as cavidades?
A41: 5.8 | B41: Os resultados declarados estão conforme especificação?
A42: 6 | B42: RELATÓRIO DE MATERIAL E DESEMPENHO
B43: Pergunta | C43: SIM | D43: NÃO | E43: Comentários / Ação Requerida
A44: 61 | B44: As informações sobre o produto estão corretamente declaradas? - nº da peça - descrição - alteração/ïndice do desenho
A45: 6.2 | B45: As especificações de material, montagem, ensaios fisicos e químicos, especificadas em desenho estão declaradas?
A46: 6.3 | B46: Os métodos de teste ( norma, especificações do cliente) estão declaradas?
A47: 6.4 | B47: Os resultados estão declarados?
A48: 6.5 | B48: Pode ser comprovada a conformidade dos resultados com as especificações?
A49: 7 | B49: DISPOSITIVO DE TESTE E INSPEÇÃO
B50: Pergunta | C50: SIM | D50: NÃO | E50: Comentários / Ação Requerida
A51: 7.1 | B51: Os dispositivos estão disponíveis e está pré estabelecida a sua calibração?
A52: 8 | B52: APROVAÇÃO DE COMPONENTES INTERNOS E PAPP DE SUBCONTRATADOS
B53: Pergunta | C53: SIM | D53: NÃO | E53: Comentários / Ação Requerida
A54: 8.1 | B54: Os itens comprados já estão com o PAPP´s concluídos? Caso negativo, há uma aprovação interina?
A55: 8.2 | B55: Estão todos os PAPP´s devidamente assinados?
A56: 9 | B56: ESTUDO INICIAL DE PROCESSO (CEP)
B57: Pergunta | C57: SIM | D57: NÃO | E57: Comentários / Ação Requerida
A58: 9.1 | B58: Foram submetidos estudos para todas as características
A59: 9.2 | B59: Foram submetidos estudos de todas as cavidades?
A60: 9.3 | B60: Os resultados estão em conformidade com os requisitos do Manual do PPAP?
A61: 10 | B61: SISTEMA DE MEDIÇÃO ( MSA / R&R )
B62: Pergunta | C62: SIM | D62: NÃO | E62: Comentários / Ação Requerida
A63: 10.1 | B63: Foram submetidos os estudos de R&R para todos os equipamentos declarados no Plano de Controle?
A64: 10.2 | B64: Os resultados dos estudo de R&R estão em conformidade com os requisitos do Manual de MSA?
A65: 11 | B65: EMBALAGEM E IDENTIFICAÇÃO
B66: Pergunta | C66: SIM | D66: NÃO | E66: Comentários / Ação Requerida
A67: 11.1 | B67: Está declarado o acondiciomento no que tange: quantidade x volume x tipo de embalagem?
A68: 12 | B68: PEÇA PADRÃO
B69: Pergunta | C69: SIM | D69: NÃO | E69: Comentários / Ação Requerida
A70: 12.1 | B70: Foram retidas e identificadas peça padrão da aprovação ? (02peças)
A71: 13 | B71: RUN @ RATE
B72: Pergunta | C72: SIM | D72: NÃO | E72: Comentários / Ação Requerida
A73: 13.1 | B73: Foi realizado o levantamento de capacidade de fabricação, com formulário específico ?
A74: 13.2 | B74: Os dados obtidos atigem o volume contratado ? Quando não, deve o fornecedor apresentar plano de ação para atingir o mesmo.
A75: 14 | B75: DECLARAÇÃO DE SUBSTÂNCIAS RESTRITAS (RSMS)
A76: 14.1 | B76: Os dados de substâncias restritas estão disponíveis ?
A77: 14.2 | B77: Os dados foram inseridos no IMDS System ?
A78: 15 | B78: FERRAMENTAL
A79: 15.1 | B79: Ficha de dados ( dimensões, demais caraterísticas )
B84: Aprovado por: | C84: Ass.: | F84: Data:
B85: (Nome legível / Cargo)

Sheet PSW - 4º Edição
D1: Certificado de Submissão de Peça | N1: PPAP
N4: 001/16
N6: Revisão 0 de 07/08/15
A7: Nome da peça | E7: Pastilha do registro ramal | I7: Código do Cliente | M7: RR-1202/07
A8: Mostrado no desenho nº | F8: RR-1202/07 | I8: Código do Fornecedor | M8: 076
A9: Nível de alteração de engenharia | F9: 07 | N9: Data | O9: 2003-09-23
A10: Alterações adicionais de engenharia | F10: Nenhuma | N10: Data
A11: Auxiliar de verificação | E11: Nenhum | G11: Nível de alteração de engenharia | N11: Data
A13: Propriedade da ferramenta | G13: REF: | J13: Nº pedido de compra
A15: Regulamentação de segurança ou governamental? | J15: Peso da peça (kg) | N15: 0.0005
A17: INFORMAÇÕES DO FORNECEDOR | I17: INFORMAÇÕES DE SUBMISSÃO DO CLIENTE
A18: Parolibor Ind. Art. Borracha Ltda.
A19: Nome do fornecedor / Código | I19: Nome do cliente / Divisão
A20: Av. Riachuelo, 66 - Vila Conceição
A21: Rua | I21: Comprador / Código do comprador
A22: Diadema | C22: SP | E22: 09912-190 | G22: Brasil
A23: Cidade | C23: Estado | E23: CEP | G23: País | I23: Aplicação
A25: REPORTE DE MATERIAIS
A26: As informações sobre substâncias perigosas requisitadas pelo cliente foram relatadas?
E28: Submentido via IMDS ou outro formato do cliente:
A30: As peças poliméricas estão identificadas com os códigos de marcação apropriados da ISO?
A32: RAZÃO PARA SUBMISSÃO
A39: NÍVEL DE SUBMISSÃO REQUERIDO (Marque pelo menos um)
A46: RESULTADOS DA SUBMISSÃO
A47: Os resultados de
A48: Esses resultados atendem todas as especificações e requisitos de desenho?
A49: Moldes / Cavidades / Processo de produção: | G49: 2 Moldes / 198 cavidades / Transferência
A51: DECLARAÇÃO
A52: Afirmo que as amostras representadas por este certificado são representativas de nossas peças, as quais foram fabricadas através de um processo que atende todos os requisitos da 4º Edição do manual Processo de Aprovação de Peça de Produção. Além disso, afirmo que essas amostras foram produzidas na razão de produção de 19000 peças / 4 horas. Certifico também que a evidência documentada de tal conformidade está arquivada e disponível para análise crítica. Eu anotei quaisquer desvios desta declaração abaixo.
A56: EXPLICAÇÃO / COMENTÁRIOS:
A57: Cada ferramenta do cliente está corretamente etiquetada e numerada?
A59: Assinatura autorizada da organização | M59: Data
A60: Nome | B60: Celso Araújo | M60: Telefone | N60: +55 (11) 4056-1495
A61: Cargo | B61: Gerente de Qualidade | M61: E-mail | N61: celso@parolibor.com.br
A63: PARA USO SOMENTE DO CLIENTE (SE APLICÁVEL)
A64: Disposição do certificado de PPAP:
A66: Assinatura do Cliente | M66: Data
A68: Nome legível | I68: Nº de rastreabilidade do cliente (opcional)
A70: CFG-1001 | C70: MARCH | D70: 2006

Sheet RDimensionais
D1: Aprovação de Peça de Produção | N1: PPAP
D4: Resultados de ensaios de desempenho | N4: =TRANSPOSE('PSW - 4º Edição'!N4:P5) -> 001/16
N6: =CONCATENATE('PSW - 4º Edição'!N6) -> Revisão 0 de 07/08/15
A7: ORGANIZAÇÃO: | F7: Parolibor | I7: Nº PEÇA: | N7: ='PSW - 4º Edição'!M7 -> RR-1202/07
A8: CÓDIGO DO FORNECEDOR: | F8: ='PSW - 4º Edição'!M8 -> 076 | I8: NOME DA PEÇA: | N8: ='PSW - 4º Edição'!E7 -> Pastilha do registro ramal
A9: LOCAL DE INSPEÇÃO: | F9: Parolibor | I9: NÍVEL DE ALTERAÇÃO DO PROJETO: | N9: =TRANSPOSE('PSW - 4º Edição'!F9) -> 07
I10: DOC. ALTERAÇÃO DE ENGENHARIA:
A12: REF. | B12: ENSAIO / DIMENSÃO | F12: ESPECIFICAÇÃO | H12: DATA ENSAIO | J12: QUANT. ENSAIO | K12: RESULTADOS DO FORNECEDOR | O12: OK | P12: NÃO OK
F63: Comentários:
F65: NC: Não controlado pelo fornecedor. Deve ser atendido pelo cliente.
F66: Declarações de conformidade em branco são inaceitáveis para quaisquer resultado de ensaio.
F68: ASSINATURA | I68: CARGO | N68: DATA
I69: Gerente da Qualidade
A70: CFG-1003 | C70: MARCH | D70: 2006
C73: Não alterar formatos para evitar distoção na impressão
C74: Altura da linha: 12
C75: Largura da coluna: 5,5

Sheet RMateriais
D1: Aprovação de Peça de Produção | N1: PPAP
D4: Resultados de ensaios materiais e funcionais | N4: =TRANSPOSE('PSW - 4º Edição'!N4:P5) -> 001/16
N6: =CONCATENATE('PSW - 4º Edição'!N6) -> Revisão 0 de 07/08/15
A7: ORGANIZAÇÃO: | F7: Parolibor | I7: Nº PEÇA: | N7: =TRANSPOSE('PSW - 4º Edição'!M7) -> RR-1202/07
A8: CÓDIGO DO FORNECEDOR: | F8: =TRANSPOSE('PSW - 4º Edição'!M8) -> 076 | I8: NOME DA PEÇA: | N8: =TRANSPOSE('PSW - 4º Edição'!E7) -> Pastilha do registro ramal
A9: LOCAL DE INSPEÇÃO: | F9: Parolibor | I9: NÍVEL DE ALTERAÇÃO DO PROJETO: | N9: =TRANSPOSE('PSW - 4º Edição'!F9) -> 07
I10: DOC. ALTERAÇÃO DE ENGENHARIA:
A12: REF. | B12: ENSAIO / DIMENSÃO | F12: ESPECIFICAÇÃO | H12: DATA ENSAIO | J12: QUANT. ENSAIO | K12: RESULTADOS DO FORNECEDOR | O12: OK | P12: NÃO OK
B14: PROPRIEDADES ORIGINAIS
A15: M1 | B15: Material | F15: NE | H15: 2015-07-07 | J15: 1 | K15: NBR | O15: ü
A16: M2 | B16: Dureza (ShA) | F16: 73 | G16: 79 | H16: 2015-07-07 | J16: 5 | K16: 76 | O16: ü
A17: M3 | B17: Tensão de ruptura (MPa) | F17: NE | H17: 2015-07-07 | J17: 5 | K17: 16.2 | O17: ü
A18: M4 | B18: Alongamento de ruptura (%) | F18: NE | H18: 2015-07-07 | J18: 5 | K18: 302 | O18: ü
A19: M5 | B19: DPC - 22h @ 100°C (%) | F19: 20 (MÁX) | H19: 2014-09-19 | J19: 2 | K19: 14 | O19: ü
A20: M6 | B20: Tensão de rasgo (kgf/cm) | F20: 40 (MÍN) | H20: 2014-08-27 | J20: 5 | K20: 46 | O20: ü
A21: M7 | B21: Densidade (g/cm³) | F21: NE | H21: 2015-07-07 | J21: 3 | K21: 1.267 | O21: ü
A24: M8 | B24: RES. ENVELHECIMENTO - EXPOSIÇÃO 70h @ 100°C
B25: Δ Dureza (Shore A) | F25: -15 | G25: 15 | H25: 2014-09-19 | J25: 3 | K25: 4 | O25: ü
B26: Tensão de ruptura (MPa) | F26: -20 | G26: 20 | H26: 2014-09-19 | J26: 5 | K26: 2 | O26: ü
B27: Alongamento de ruptura (%) | F27: -40 | G27: 40 | H27: 2014-09-19 | J27: 5 | K27: -35 | O27: ü
A28: M9 | B28: RES. ÓLEO IRM 903 - EXPOSIÇÃO 70h @ 100°C
B29: Δ Dureza (Shore A) | F29: -5 | G29: 5 | H29: 2014-09-19 | J29: 3 | K29: -3 | O29: ü
B30: Δ Volume (%) | F30: 0 | G30: 15 | H30: 2014-09-19 | J30: 3 | K30: 3 | O30: ü
B31: Δ Tensão de ruptura (%) | F31: -25 | G31: 25 | H31: 2014-09-19 | J31: 5 | K31: -10 | O31: ü
B32: Δ Alongamento de ruptura (%) | F32: -45 | G32: 45 | H32: 2014-09-19 | J32: 5 | K32: 0 | O32: ü
A33: M10 | B33: RES. ÓLEO ASTM#1 - EXPOSIÇÃO 70h @ 100°C
B34: Δ Dureza (Shore A) | F34: -5 | G34: 10 | H34: 2014-09-19 | J34: 3 | K34: 5 | O34: ü
B35: Δ Volume (%) | F35: -10 | G35: 5 | H35: 2014-09-19 | J35: 3 | K35: -3 | O35: ü
B36: Δ Tensão de ruptura (%) | F36: -25 | G36: 25 | H36: 2014-09-19 | J36: 5 | K36: 7 | O36: ü
B37: Δ Alongamento de ruptura (%) | F37: -45 | G37: 45 | H37: 2014-09-19 | J37: 5 | K37: -40 | O37: ü
A38: M11 | B38: RES. ÁGUA - EXPOSIÇÃO 70h @ 100°C
B39: Δ Dureza (Shore A) | F39: -10 | G39: 10 | H39: 2014-09-19 | J39: 3 | K39: 1 | O39: ü
B40: Δ Volume (%) | F40: -15 | G40: 15 | H40: 2014-09-19 | J40: 3 | K40: 0 | O40: ü
A41: M20 | B41: REOMETRIA - OSCILAÇÃO 1° - 100cpm @ 175°C
B42: TS50 (min) | F42: 0.4 | G42: 2 | H42: 2015-07-07 | J42: 2 | K42: 1.2 | O42: ü
A43: M30 | B43: RES. BUTANO LÍQ. - EXPOSIÇÃO 70h @ Tamb.
B44: Δ Dureza (Shore A) | F44: -5 | G44: 5 | H44: 2014-09-02 | J44: 5 | K44: -3 | O44: ü
B45: Δ Volume (%) | F45: -5 | G45: 5 | H45: 2014-09-02 | J45: 5 | K45: 1 | O45: ü
B46: Δ Massa (%) | F46: -5 | G46: 5 | H46: 2014-09-02 | J46: 5 | K46: 2 | O46: ü
A47: M31 | B47: RES. BUTANO LÍQ. - SECAGEM 24h @ 70°C
B48: Δ Dureza (Shore A) | F48: -5 | G48: 5 | H48: 2014-09-02 | J48: 5 | K48: 1 | O48: ü
B49: Δ Volume (%) | F49: -5 | G49: 5 | H49: 2014-09-02 | J49: 5 | K49: -1 | O49: ü
B50: Δ Massa (%) | F50: -5 | G50: 5 | H50: 2014-09-02 | J50: 5 | K50: -1 | O50: ü
A51: F1 | B51: APARÊNCIA - SEM DEFORMAÇÃO, FALHA, QUEBRA, OLEOSIDADE OU EXCESSO DE REBARBA
B52: Visual | F52: PASSA | H52: 2015-07-07 | J52: 198 | K52: PASSA | O52: ü
F63: Comentários:
F65: NC: Não controlado pelo fornecedor. Deve ser atendido pelo cliente.
F66: Declarações de conformidade em branco são inaceitáveis para quaisquer resultado de ensaio.
F68: ASSINATURA | I68: CARGO | N68: DATA
I69: Responsável Técnico
A70: CFG-1004 | C70: MARCH | D70: 2006
C73: Não alterar formatos para evitar distoção na impressão
C74: Altura da linha: 12
C75: Largura da coluna: 5,5

Sheet RDesempenho
D1: Aprovação de Peça de Produção | N1: PPAP
D4: Resultados de ensaios de desempenho | N4: =TRANSPOSE('PSW - 4º Edição'!N4:P5) -> 001/16
N6: =CONCATENATE('PSW - 4º Edição'!N6) -> Revisão 0 de 07/08/15
A7: ORGANIZAÇÃO: | F7: Parolibor | I7: Nº PEÇA: | N7: =TRANSPOSE('PSW - 4º Edição'!M7) -> RR-1202/07
A8: CÓDIGO DO FORNECEDOR: | F8: =TRANSPOSE('PSW - 4º Edição'!M8) -> 076 | I8: NOME DA PEÇA: | N8: =TRANSPOSE('PSW - 4º Edição'!E7) -> Pastilha do registro ramal
A9: LOCAL DE INSPEÇÃO: | F9: Parolibor | I9: NÍVEL DE ALTERAÇÃO DO PROJETO: | N9: =TRANSPOSE('PSW - 4º Edição'!F9) -> 07
I10: DOC. ALTERAÇÃO DE ENGENHARIA:
A12: REF. | B12: ENSAIO / DIMENSÃO | F12: ESPECIFICAÇÃO | H12: DATA ENSAIO | J12: QUANT. ENSAIO | K12: RESULTADOS DO FORNECEDOR | O12: OK | P12: NÃO OK
F63: Comentários:
F65: NC: Não controlado pelo fornecedor. Deve ser atendido pelo cliente.
F66: Declarações de conformidade em branco são inaceitáveis para quaisquer resultado de ensaio.
F68: ASSINATURA | I68: CARGO | N68: DATA
I69: Gerente da Qualidade
A70: CFG-1005 | C70: MARCH | D70: 2006
C73: Não alterar formatos para evitar distoção na impressão
C74: Altura da linha: 12
C75: Largura da coluna: 5,5

Sheet Fluxo
D1: Aprovação de Peça de Produção | N1: PPAP
D4: Fluxo de processo | N4: =TRANSPOSE('[1]PSW - 4º Edição'!N4:P5) -> 001/16
N6: =CONCATENATE('[1]PSW - 4º Edição'!N6) -> Revisão 0 de 19/02/16
A7: ORGANIZAÇÃO: | F7: Parolibor | I7: Nº PEÇA: | N7: ='PSW - 4º Edição'!M7 -> RR-1202/07
A8: CÓDIGO DO FORNECEDOR: | F8: ='PSW - 4º Edição'!M8 -> 076 | I8: NOME DA PEÇA: | N8: ='PSW - 4º Edição'!E7 -> Pastilha do registro ramal
A9: LOCAL DE INSPEÇÃO: | F9: Parolibor | I9: NÍVEL DE ALTERAÇÃO DO PROJETO: | N9: =TRANSPOSE('PSW - 4º Edição'!F9) -> 07
I10: DOC. ALTERAÇÃO DE ENGENHARIA:
F63: Comentários:
F68: ASSINATURA | I68: CARGO | N68: DATA
I69: Gerente da Qualidade
C73: Não alterar formatos para evitar distoção na impressão
C74: Altura da linha: 12
C75: Largura da coluna: 5,5

Sheet MSALaboratório
D1: Aprovação de Peça de Produção | N1: PPAP
D4: Análise dos sistemas de medição | N4: =TRANSPOSE('PSW - 4º Edição'!N4:P5) -> 001/16
N6: =CONCATENATE('PSW - 4º Edição'!N6) -> Revisão 0 de 07/08/15
A7: ORGANIZAÇÃO: | F7: Parolibor | I7: Nº PEÇA: | N7: ='PSW - 4º Edição'!M7 -> RR-1202/07
A8: CÓDIGO DO FORNECEDOR: | F8: ='PSW - 4º Edição'!M8 -> 076 | I8: NOME DA PEÇA: | N8: ='PSW - 4º Edição'!E7 -> Pastilha do registro ramal
A9: LOCAL DE INSPEÇÃO: | F9: Parolibor | I9: NÍVEL DE ALTERAÇÃO DO PROJETO: | N9: =TRANSPOSE('PSW - 4º Edição'!F9) -> 07
I10: DOC. ALTERAÇÃO DE ENGENHARIA:
A12: Método ANOVA
A14: Peça: | E14: Corpo de prova ASTM D2240 | I14: Data: | M14: 2015-04-22
A15: Dispositivo de medição: | E15: Durômetro | I15: Característica: | M15: Dureza (M2)
A16: Dados: | E16: 3 operadores - 10 peças - 3 ciclos | I16: Realização: | M16: Eduardo
G19: Variância | I19: D.Padrão | K19: 5,15 D.Padrão | M19: % Variação total | O19: Contribuição
D20: Repetitividade | G20: 0.07422222222 | I20: 0.2724375566 | K20: 1.403053416 | M20: =K20/$M$27 -> 0.233842236 | O20: =M20^2 -> 0.05468219136 | S20: 0.233842236 | U20: 0.05468219136
D21: Reprodutibilidade | G21: 0.01986419753 | I21: 0.1409404042 | K21: 0.7258430815 | M21: =K21/$M$27 -> 0.1209738469 | O21: =M21^2 -> 0.01463467164 | S21: 0.1209738469 | U21: 0.01463467164
D22: Peça X Operador | G22: 0.02509876543 | I22: 0.1584258989 | K22: 0.8158933792 | M22: =K22/$M$27 -> 0.1359822299 | O22: 0.01849116684 | S22: 0.1359822299 | U22: 0.01849116684
D23: R&R | G23: 0.1191851852 | I23: 0.3452320744 | K23: 1.777945183 | M23: =K23/$M$27 -> 0.2963241972 | O23: 0.08780802984 | S23: 0.2963241972 | U23: 0.08780802984
D24: Peça-a-Peça | G24: 0.05520576132 | I24: 0.2349590631 | K24: 1.210039175 | M24: =K24/$M$27 -> 0.2016731958 | O24: 0.0406720779 | S24: 0.2016731958 | U24: 0.0406720779
A26: Observações: | E26: Baseado nas categorias de dados, o sistema de medição é aceitável
A27: Tolerância: | E27: 6 Shore A | I27: Variação total: | M27: 6
A29: Método ANOVA
A31: Peça: | E31: Corpo de prova ASTM D2084 | I31: Data: | M31: 2017-03-21
A32: Dispositivo de medição: | E32: Reômetro | I32: Característica: | M32: tS50 (M20)
A33: Dados: | E33: 3 operadores - 10 peças - 1 ciclo | I33: Realização: | M33: Eduardo
G36: Variância | I36: D.Padrão | K36: 5,15 D.Padrão | M36: % Variação total | O36: Contribuição
D37: Repetitividade | G37: 0 | I37: 0 | K37: 0 | M37: 0 | O37: 0
D38: Reprodutibilidade | G38: 0.00051 | I38: 0.02258317958 | K38: 0.1163033748 | M38: 0.1163033748 | O38: 0.013526475
D39: Peça X Operador | G39: 0.001563333333 | I39: 0.03953901027 | K39: 0.2036259029 | M39: 0.2036259029 | O39: 0.04146350833
D40: R&R | G40: 0.002073333333 | I40: 0.04553387018 | K40: 0.2344994314 | M40: 0.2344994314 | O40: 0.05498998333
D41: Peça-a-Peça | G41: 0 | I41: 0 | K41: 0 | M41: 0 | O41: 0
A43: Observações: | E43: Baseado nas categorias de dados, o sistema de medição é aceitável
A44: Tolerância: | E44: 1,0 min | I44: Variação total: | M44: 1
A46: Método ANOVA
F63: Comentários:
F68: ASSINATURA | I68: CARGO | N68: DATA
I69: Responsável Técnico
C73: Não alterar formatos para evitar distoção na impressão
C74: Altura da linha: 12
C75: Largura da coluna: 5,5

Sheet MSAVisual
D1: Aprovação de Peça de Produção | N1: PPAP
D4: Análise dos sistemas de medição | N4: =TRANSPOSE('PSW - 4º Edição'!N4:P5) -> 001/16
N6: =CONCATENATE('PSW - 4º Edição'!N6) -> Revisão 0 de 07/08/15
A7: ORGANIZAÇÃO: | F7: Parolibor | I7: Nº PEÇA: | N7: ='PSW - 4º Edição'!M7 -> RR-1202/07
A8: CÓDIGO DO FORNECEDOR: | F8: ='PSW - 4º Edição'!M8 -> 076 | I8: NOME DA PEÇA: | N8: ='PSW - 4º Edição'!E7 -> Pastilha do registro ramal
A9: LOCAL DE INSPEÇÃO: | F9: Parolibor | I9: NÍVEL DE ALTERAÇÃO DO PROJETO: | N9: =TRANSPOSE('PSW - 4º Edição'!F9) -> 07
I10: DOC. ALTERAÇÃO DE ENGENHARIA:
A12: Método Curto
A14: Peça: | E14: Item de referência | I14: Data: | M14: 2014-06-04
A15: Dispositivo de medição: | E15: Visual | I15: Característica: | M15: Deformações ou falhas
A16: Dados: | E16: 3 operadores - 150 peças | I16: Realização: | M16: Celso
F63: Comentários:
F68: ASSINATURA | I68: CARGO | N68: DATA
I69: Gerente da Qualidade
C73: Não alterar formatos para evitar distoção na impressão
C74: Altura da linha: 12
C75: Largura da coluna: 5,5

Sheet MSAMetrologia
D1: Aprovação de Peça de Produção | N1: PPAP
D4: Análise dos sistemas de medição | N4: =TRANSPOSE('PSW - 4º Edição'!N4:P5) -> 001/16
N6: =CONCATENATE('PSW - 4º Edição'!N6) -> Revisão 0 de 07/08/15
A7: ORGANIZAÇÃO: | F7: Parolibor | I7: Nº PEÇA: | N7: ='PSW - 4º Edição'!M7 -> RR-1202/07
A8: CÓDIGO DO FORNECEDOR: | F8: ='PSW - 4º Edição'!M8 -> 076 | I8: NOME DA PEÇA: | N8: ='PSW - 4º Edição'!E7 -> Pastilha do registro ramal
A9: LOCAL DE INSPEÇÃO: | F9: Parolibor | I9: NÍVEL DE ALTERAÇÃO DO PROJETO: | N9: =TRANSPOSE('PSW - 4º Edição'!F9) -> 07
I10: DOC. ALTERAÇÃO DE ENGENHARIA:
A12: Método ANOVA
A14: Peça: | E14: =N8 -> Pastilha do registro ramal | I14: Data:
A15: Dispositivo de medição: | E15: Paquímetro 004/06-CQ | I15: Característica: | M15: Diâmetro 7,9 mm
A16: Dados: | E16: 3 operadores - 10 peças - 3 ciclos | I16: Realização: | M16: Celso
G19: Variância | I19: D.Padrão | K19: 5,15 D.Padrão | M19: % Variação total | O19: Contribuição
D20: Repetitividade | G20: 0.0003266666667 | I20: 0.007 | K20: =5.15*I20 -> 0.03605 | M20: =K20/$M$27 -> 0.090125 | O20: =M20^2 -> 0.008122515625
D21: Reprodutibilidade | G21: 0.005395555556 | I21: 0.0019 | K21: =5.15*I21 -> 0.009785 | M21: =K21/$M$27 -> 0.0244625 | O21: =M21^2 -> 0.0005984139062
D22: Peça X Operador | G22: 0.001051111111 | I22: 0.0019 | K22: =5.15*I22 -> 0.009785 | M22: =K22/$M$27 -> 0.0244625 | O22: 0.0005984139062
D23: R&R | G23: 0.002866666667 | I23: 0.0074 | K23: 0.03811 | M23: =K23/$M$27 -> 0.095275 | O23: 0.009077325625
D24: Peça-a-Peça | G24: 0.0001779012346 | I24: 0.0078 | K24: 0.04017 | M24: =K24/$M$27 -> 0.100425 | O24: 0.01008518063
A26: Observações: | E26: =IF(M23<=0.1,"Baseado nas categorias de dados, o sistema de medição é adequado",IF(M23>0.3,"Baseado nas categorias de dados, o sistema de medição não é aceitável","Baseado nas categorias de dados, o sistema de medição é aceitável")) -> Baseado nas categorias de dados, o sistema de medição é adequado
A27: Tolerância: | E27: 0,4 mm | I27: Variação total: | M27: 0.4
A29: Método ANOVA
A46: Método ANOVA
F63: Comentários:
F68: ASSINATURA | I68: CARGO | N68: DATA
I69: Gerente da Qualidade
C73: Não alterar formatos para evitar distoção na impressão
C74: Altura da linha: 12
C75: Largura da coluna: 5,5

Sheet EstCaractEspeciais
D1: Aprovação de Peça de Produção | N1: PPAP
D4: Estudos iniciais do processo | N4: =TRANSPOSE('PSW - 4º Edição'!N4:P5) -> 001/16
N6: =CONCATENATE('PSW - 4º Edição'!N6) -> Revisão 0 de 07/08/15
A7: ORGANIZAÇÃO: | F7: Parolibor | I7: Nº PEÇA: | N7: ='PSW - 4º Edição'!M7 -> RR-1202/07
A8: CÓDIGO DO FORNECEDOR: | F8: ='PSW - 4º Edição'!M8 -> 076 | I8: NOME DA PEÇA: | N8: ='PSW - 4º Edição'!E7 -> Pastilha do registro ramal
A9: LOCAL DE INSPEÇÃO: | F9: Parolibor | I9: NÍVEL DE ALTERAÇÃO DO PROJETO: | N9: =TRANSPOSE('PSW - 4º Edição'!F9) -> 07
I10: DOC. ALTERAÇÃO DE ENGENHARIA:
F63: Comentários:
F68: ASSINATURA | I68: CARGO | N68: DATA
I69: Gerente da Qualidade
C73: Não alterar formatos para evitar distoção na impressão
C74: Altura da linha: 12
C75: Largura da coluna: 5,5

Sheet Dados Cota C1
A1: Capabilidade do Processo
A2: Item:
A3: Caracteristica: | B3: Capabilidade cota C1 - ø (68,50 ± 0,20) mm
C4: LSE | D4: LIE | E4: Passo | F4: Divisões
C5: 10.5 | D5: 9.5 | E5: =(C5-D5)/F5 -> 0.02 | F5: 50 | G5: Curva normal
A6: 2009-07-24
A7: Cavidade | C7: Medida | F7: Número classes | G7: Classes | H7: Condição | I7: Normal | J7: Ocorrências
A8: 1 | C8: 9.958 | F8: 1 | G8: =D5-F5*E5/2 -> 9 | H8: =CONCATENATE("<=",G8+(G9-G8)/2) -> <=9,01 | I8: =NORMDIST(G8,$C$109,$C$110,FALSE) -> 1.905781372e-09 | J8: =COUNTIF($C$8:$C$108,H8) -> 0
A9: 2 | C9: 9.948 | F9: 2 | G9: =G8+$E$5 -> 9.02 | H9: =CONCATENATE("<=",G9+(G10-G9)/2) -> <=9,03 | I9: 4.970321386e-09 | J9: =COUNTIF($C$8:$C$107,H9)-J8 -> 0
A10: 3 | C10: 9.938 | F10: 3 | G10: =G9+$E$5 -> 9.04 | H10: <=9,05 | I10: 1.267797249e-08 | J10: =COUNTIF($C$8:$C$107,H10)-SUM($J$8:J9) -> 0
A11: 4 | C11: 9.898 | F11: 4 | G11: 9.06 | H11: <=9,07 | I11: 3.162780684e-08 | J11: =COUNTIF($C$8:$C$107,H11)-SUM($J$8:J10) -> 0
A12: 5 | C12: 9.918 | F12: 5 | G12: 9.08 | H12: <=9,09 | I12: 7.71688965e-08 | J12: =COUNTIF($C$8:$C$107,H12)-SUM($J$8:J11) -> 0
A13: 6 | C13: 9.94 | F13: 6 | G13: 9.1 | H13: <=9,11 | I13: 1.841490326e-07 | J13: =COUNTIF($C$8:$C$107,H13)-SUM($J$8:J12) -> 0
A14: 7 | C14: 9.966 | F14: 7 | G14: 9.12 | H14: <=9,13 | I14: 4.29784286e-07 | J14: =COUNTIF($C$8:$C$107,H14)-SUM($J$8:J13) -> 0
A15: 8 | C15: 9.906 | F15: 8 | G15: 9.14 | H15: <=9,15 | I15: 9.81037397e-07 | J15: =COUNTIF($C$8:$C$107,H15)-SUM($J$8:J14) -> 0
A16: 9 | C16: 9.902 | F16: 9 | G16: 9.16 | H16: <=9,17 | I16: 2.190153392e-06 | J16: =COUNTIF($C$8:$C$107,H16)-SUM($J$8:J15) -> 0
A17: 10 | C17: 9.876 | F17: 10 | G17: 9.18 | H17: <=9,19 | I17: 4.782086658e-06 | J17: =COUNTIF($C$8:$C$107,H17)-SUM($J$8:J16) -> 0
A18: 11 | C18: 9.906 | F18: 11 | G18: 9.2 | H18: <=9,21 | I18: 1.021208193e-05 | J18: =COUNTIF($C$8:$C$107,H18)-SUM($J$8:J17) -> 0
A19: 12 | C19: 9.882 | F19: 12 | G19: 9.22 | H19: <=9,23 | I19: 2.132873402e-05 | J19: =COUNTIF($C$8:$C$107,H19)-SUM($J$8:J18) -> 0
A20: 13 | C20: 9.888 | F20: 13 | G20: 9.24 | H20: <=9,24999999999999 | I20: 4.356821886e-05 | J20: =COUNTIF($C$8:$C$107,H20)-SUM($J$8:J19) -> 0
A21: 14 | C21: 9.908 | F21: 14 | G21: 9.26 | H21: <=9,26999999999999 | I21: 8.704192203e-05 | J21: =COUNTIF($C$8:$C$107,H21)-SUM($J$8:J20) -> 0
A22: 15 | C22: 9.92 | F22: 15 | G22: 9.28 | H22: <=9,28999999999999 | I22: 0.0001700752345 | J22: =COUNTIF($C$8:$C$107,H22)-SUM($J$8:J21) -> 0
A23: 16 | C23: 9.878 | F23: 16 | G23: 9.3 | H23: <=9,30999999999999 | I23: 0.0003250181575 | J23: =COUNTIF($C$8:$C$107,H23)-SUM($J$8:J22) -> 0
A24: 17 | C24: 9.8 | F24: 17 | G24: 9.32 | H24: <=9,32999999999999 | I24: 0.0006074745793 | J24: =COUNTIF($C$8:$C$107,H24)-SUM($J$8:J23) -> 0
A25: 18 | C25: 9.816 | F25: 18 | G25: 9.34 | H25: <=9,34999999999999 | I25: 0.001110459013 | J25: =COUNTIF($C$8:$C$107,H25)-SUM($J$8:J24) -> 0
A26: 19 | C26: 9.776 | F26: 19 | G26: 9.36 | H26: <=9,36999999999999 | I26: 0.001985321734 | J26: =COUNTIF($C$8:$C$107,H26)-SUM($J$8:J25) -> 0
A27: 20 | C27: 9.732 | F27: 20 | G27: 9.38 | H27: <=9,38999999999999 | I27: 0.003471468269 | J27: =COUNTIF($C$8:$C$107,H27)-SUM($J$8:J26) -> 0
A28: 21 | C28: 9.676 | F28: 21 | G28: 9.4 | H28: <=9,40999999999999 | I28: 0.005936759317 | J28: =COUNTIF($C$8:$C$107,H28)-SUM($J$8:J27) -> 0
A29: 22 | C29: 9.776 | F29: 22 | G29: 9.42 | H29: <=9,42999999999999 | I29: 0.009929779949 | J29: =COUNTIF($C$8:$C$107,H29)-SUM($J$8:J28) -> 0
A30: 23 | C30: 9.724 | F30: 23 | G30: 9.44 | H30: <=9,44999999999999 | I30: 0.01624365458 | J30: =COUNTIF($C$8:$C$107,H30)-SUM($J$8:J29) -> 0
A31: 24 | C31: 9.748 | F31: 24 | G31: 9.46 | H31: <=9,46999999999999 | I31: 0.02598853546 | J31: =COUNTIF($C$8:$C$107,H31)-SUM($J$8:J30) -> 0
A32: 25 | C32: 9.776 | F32: 25 | G32: 9.48 | H32: <=9,48999999999999 | I32: 0.04066622004 | J32: =COUNTIF($C$8:$C$107,H32)-SUM($J$8:J31) -> 0
A33: 26 | C33: 9.85 | F33: 26 | G33: 9.5 | H33: <=9,50999999999999 | I33: 0.06223572393 | J33: =COUNTIF($C$8:$C$107,H33)-SUM($J$8:J32) -> 0
A34: 27 | C34: 9.83 | F34: 27 | G34: 9.52 | H34: <=9,52999999999999 | I34: 0.09315359598 | J34: =COUNTIF($C$8:$C$107,H34)-SUM($J$8:J33) -> 0
A35: 28 | C35: 9.928 | F35: 28 | G35: 9.54 | H35: <=9,54999999999999 | I35: 0.1363683051 | J35: =COUNTIF($C$8:$C$107,H35)-SUM($J$8:J34) -> 0
A36: 29 | C36: 9.886 | F36: 29 | G36: 9.56 | H36: <=9,56999999999999 | I36: 0.1952455752 | J36: =COUNTIF($C$8:$C$107,H36)-SUM($J$8:J35) -> 0
A37: 30 | C37: 9.806 | F37: 30 | G37: 9.58 | H37: <=9,58999999999999 | I37: 0.2734027618 | J37: =COUNTIF($C$8:$C$107,H37)-SUM($J$8:J36) -> 0
A38: 31 | C38: 9.794 | F38: 31 | G38: 9.6 | H38: <=9,60999999999999 | I38: 0.3744368075 | J38: =COUNTIF($C$8:$C$107,H38)-SUM($J$8:J37) -> 0
A39: 32 | C39: 9.768 | F39: 32 | G39: 9.62 | H39: <=9,62999999999999 | I39: 0.5015429262 | J39: =COUNTIF($C$8:$C$107,H39)-SUM($J$8:J38) -> 0
A40: 33 | C40: 9.7 | F40: 33 | G40: 9.64 | H40: <=9,64999999999999 | I40: =NORMDIST(G40,$C$109,$C$110,FALSE) -> 0.6570397199 | J40: =COUNTIF($C$8:$C$107,H40)-SUM($J$8:J39) -> 0
A41: 34 | C41: 9.764 | F41: 34 | G41: 9.66 | H41: <=9,66999999999999 | I41: 0.8418390732 | J41: =COUNTIF($C$8:$C$107,H41)-SUM($J$8:J40) -> 0
A42: 35 | C42: 9.86 | F42: 35 | G42: 9.68 | H42: <=9,68999999999999 | I42: 1.054922301 | J42: =COUNTIF($C$8:$C$107,H42)-SUM($J$8:J41) -> 1
A43: 36 | C43: 9.812 | F43: 36 | G43: 9.7 | H43: <=9,70999999999998 | I43: 1.292902593 | J43: =COUNTIF($C$8:$C$107,H43)-SUM($J$8:J42) -> 2
A44: 37 | C44: 10.194 | F44: 37 | G44: 9.72 | H44: <=9,72999999999998 | I44: 1.549762255 | J44: =COUNTIF($C$8:$C$107,H44)-SUM($J$8:J43) -> 1
A45: 38 | C45: 10.202 | F45: 38 | G45: 9.74 | H45: <=9,74999999999998 | I45: 1.816846729 | J45: =COUNTIF($C$8:$C$107,H45)-SUM($J$8:J44) -> 2
A46: 39 | C46: 10.156 | F46: 39 | G46: 9.76 | H46: <=9,76999999999998 | I46: 2.083173503 | J46: =COUNTIF($C$8:$C$107,H46)-SUM($J$8:J45) -> 3
A47: 40 | C47: 10.136 | F47: 40 | G47: 9.78 | H47: <=9,78999999999998 | I47: 2.336073667 | J47: =COUNTIF($C$8:$C$107,H47)-SUM($J$8:J46) -> 5
A48: 41 | C48: 10.216 | F48: 41 | G48: 9.8 | H48: <=9,80999999999998 | I48: 2.562132375 | J48: =COUNTIF($C$8:$C$107,H48)-SUM($J$8:J47) -> 4
A49: 42 | C49: 9.79 | F49: 42 | G49: 9.82 | H49: <=9,82999999999998 | I49: 2.748340476 | J49: =COUNTIF($C$8:$C$107,H49)-SUM($J$8:J48) -> 2
A50: 43 | C50: 9.77 | F50: 43 | G50: 9.84 | H50: <=9,84999999999998 | I50: 2.883323974 | J50: =COUNTIF($C$8:$C$107,H50)-SUM($J$8:J49) -> 1
A51: 44 | C51: 9.788 | F51: 44 | G51: 9.86 | H51: <=9,86999999999998 | I51: 2.958491266 | J51: =COUNTIF($C$8:$C$107,H51)-SUM($J$8:J50) -> 2
A52: 45 | C52: 9.766 | F52: 45 | G52: 9.88 | H52: <=9,88999999999998 | I52: 2.968937665 | J52: =COUNTIF($C$8:$C$107,H52)-SUM($J$8:J51) -> 5
A53: 46 | C53: 9.694 | F53: 46 | G53: 9.9 | H53: <=9,90999999999998 | I53: 2.9139749 | J53: =COUNTIF($C$8:$C$107,H53)-SUM($J$8:J52) -> 5
A54: 47 | F54: 47 | G54: 9.92 | H54: <=9,92999999999998 | I54: 2.797206143 | J54: =COUNTIF($C$8:$C$107,H54)-SUM($J$8:J53) -> 3
A55: 48 | F55: 48 | G55: 9.94 | H55: <=9,94999999999998 | I55: 2.626135191 | J55: =COUNTIF($C$8:$C$107,H55)-SUM($J$8:J54) -> 3
A56: 49 | F56: 49 | G56: 9.96 | H56: <=9,96999999999998 | I56: 2.41136873 | J56: =COUNTIF($C$8:$C$107,H56)-SUM($J$8:J55) -> 2
A57: 50 | F57: 50 | G57: 9.98 | H57: <=9,98999999999998 | I57: 2.165529527 | J57: =COUNTIF($C$8:$C$107,H57)-SUM($J$8:J56) -> 0
A58: 51 | F58: 51 | G58: 10 | H58: =CONCATENATE("<=",G58) -> <=9,99999999999998 | I58: 1.90203513 | J58: =COUNTIF($C$8:$C$107,H58)-SUM($J$8:J57) -> 0
A59: 52 | F59: 52 | G59: 10.02 | H59: <=10,03 | I59: =NORMDIST(G59,$C$109,$C$110,FALSE) -> 1.63390536 | J59: =COUNTIF($C$8:$C$107,H59)-SUM($J$8:J58) -> 0
A60: 53 | F60: 53 | G60: 10.04 | H60: =CONCATENATE("<=",G60) -> <=10,04 | I60: 1.372742882 | J60: =COUNTIF($C$8:$C$107,H60)-SUM($J$8:J59) -> 0
A61: 54 | F61: 54 | G61: 10.06 | H61: <=10,07 | I61: 1.127990502 | J61: =COUNTIF($C$8:$C$107,H61)-SUM($J$8:J60) -> 0
A62: 55 | F62: 55 | G62: 10.08 | H62: =CONCATENATE("<=",G62) -> <=10,08 | I62: 0.906516315 | J62: =COUNTIF($C$8:$C$107,H62)-SUM($J$8:J61) -> 0
A63: 56 | F63: 56 | G63: 10.1 | H63: <=10,11 | I63: 0.7125244079 | J63: =COUNTIF($C$8:$C$107,H63)-SUM($J$8:J62) -> 0
A64: 57 | F64: 57 | G64: 10.12 | H64: =CONCATENATE("<=",G64) -> <=10,12 | I64: 0.5477442239 | J64: =COUNTIF($C$8:$C$107,H64)-SUM($J$8:J63) -> 0
A65: 58 | F65: 58 | G65: 10.14 | H65: <=10,15 | I65: 0.4118222494 | J65: =COUNTIF($C$8:$C$107,H65)-SUM($J$8:J64) -> 1
A66: 59 | F66: 59 | G66: 10.16 | H66: =CONCATENATE("<=",G66) -> <=10,16 | I66: 0.302827803 | J66: =COUNTIF($C$8:$C$107,H66)-SUM($J$8:J65) -> 1
A67: 60 | F67: 60 | G67: 10.18 | H67: <=10,19 | I67: 0.2177888414 | J67: =COUNTIF($C$8:$C$107,H67)-SUM($J$8:J66) -> 0
A68: 61 | F68: 61 | G68: 10.2 | H68: =CONCATENATE("<=",G68) -> <=10,2 | I68: 0.1531896566 | J68: =COUNTIF($C$8:$C$107,H68)-SUM($J$8:J67) -> 1
A69: 62 | F69: 62 | G69: 10.22 | H69: <=10,23 | I69: 0.1053846118 | J69: =COUNTIF($C$8:$C$107,H69)-SUM($J$8:J68) -> 2
A70: 63 | F70: 63 | G70: 10.24 | H70: =CONCATENATE("<=",G70) -> <=10,24 | I70: 0.07090533238 | J70: =COUNTIF($C$8:$C$107,H70)-SUM($J$8:J69) -> 0
A71: 64 | F71: 64 | G71: 10.26 | H71: <=10,27 | I71: 0.04665890404 | J71: =COUNTIF($C$8:$C$107,H71)-SUM($J$8:J70) -> 0
A72: 65 | F72: 65 | G72: 10.28 | H72: =CONCATENATE("<=",G72) -> <=10,28 | I72: 0.03002922398 | J72: =COUNTIF($C$8:$C$107,H72)-SUM($J$8:J71) -> 0
A73: 66 | F73: 66 | G73: 10.3 | H73: =CONCATENATE("<=",G73+(G74-G73)/2) -> <=10,31 | I73: 0.01890199415 | J73: =COUNTIF($C$8:$C$107,H73)-SUM($J$8:J72) -> 0
A74: 67 | F74: 67 | G74: =G73+$E$5 -> 10.32 | H74: =CONCATENATE("<=",G74) -> <=10,32 | I74: 0.01163657248 | J74: =COUNTIF($C$8:$C$107,H74)-SUM($J$8:J73) -> 0
A75: 68 | F75: 68 | G75: 10.34 | H75: <=10,35 | I75: 0.007006424924 | J75: =COUNTIF($C$8:$C$107,H75)-SUM($J$8:J74) -> 0
A76: 69 | F76: 69 | G76: 10.36 | H76: =CONCATENATE("<=",G76) -> <=10,36 | I76: 0.00412592953 | J76: =COUNTIF($C$8:$C$107,H76)-SUM($J$8:J75) -> 0
A77: 70 | F77: 70 | G77: 10.38 | H77: <=10,39 | I77: 0.002376298964 | J77: =COUNTIF($C$8:$C$107,H77)-SUM($J$8:J76) -> 0
A78: 71 | F78: 71 | G78: 10.4 | H78: =CONCATENATE("<=",G78) -> <=10,4 | I78: 0.001338549052 | J78: =COUNTIF($C$8:$C$107,H78)-SUM($J$8:J77) -> 0
A79: 72 | F79: 72 | G79: 10.42 | H79: <=10,43 | I79: 0.000737431088 | J79: =COUNTIF($C$8:$C$107,H79)-SUM($J$8:J78) -> 0
A80: 73 | F80: 73 | G80: 10.44 | H80: =CONCATENATE("<=",G80) -> <=10,44 | I80: 0.0003973402248 | J80: =COUNTIF($C$8:$C$107,H80)-SUM($J$8:J79) -> 0
A81: 74 | F81: 74 | G81: 10.46 | H81: <=10,47 | I81: 0.0002093907842 | J81: =COUNTIF($C$8:$C$107,H81)-SUM($J$8:J80) -> 0
A82: 75 | F82: 75 | G82: 10.48 | H82: =CONCATENATE("<=",G82) -> <=10,48 | I82: 0.0001079211422 | J82: =COUNTIF($C$8:$C$107,H82)-SUM($J$8:J81) -> 0
A83: 76 | F83: 76 | G83: 10.5 | H83: <=10,51 | I83: 5.440132056e-05 | J83: =COUNTIF($C$8:$C$107,H83)-SUM($J$8:J82) -> 0
A84: 77 | F84: 77 | G84: 10.52 | H84: =CONCATENATE("<=",G84) -> <=10,52 | I84: 2.682046422e-05 | J84: =COUNTIF($C$8:$C$107,H84)-SUM($J$8:J83) -> 0
A85: 78 | F85: 78 | G85: 10.54 | H85: <=10,55 | I85: 1.293233894e-05 | J85: =COUNTIF($C$8:$C$107,H85)-SUM($J$8:J84) -> 0
A86: 79 | F86: 79 | G86: 10.56 | H86: =CONCATENATE("<=",G86) -> <=10,56 | I86: 6.098763683e-06 | J86: =COUNTIF($C$8:$C$107,H86)-SUM($J$8:J85) -> 0
A87: 80 | F87: 80 | G87: 10.58 | H87: <=10,59 | I87: 2.812940022e-06 | J87: =COUNTIF($C$8:$C$107,H87)-SUM($J$8:J86) -> 0
A88: 81 | F88: 81 | G88: 10.6 | H88: =CONCATENATE("<=",G88) -> <=10,6 | I88: 1.268916598e-06 | J88: =COUNTIF($C$8:$C$107,H88)-SUM($J$8:J87) -> 0
A89: 82 | F89: 82 | G89: 10.62 | H89: <=10,63 | I89: 5.598344549e-07 | J89: =COUNTIF($C$8:$C$107,H89)-SUM($J$8:J88) -> 0
A90: 83 | F90: 83 | G90: 10.64 | H90: =CONCATENATE("<=",G90) -> <=10,64 | I90: 2.415683919e-07 | J90: =COUNTIF($C$8:$C$107,H90)-SUM($J$8:J89) -> 0
A91: 84 | F91: 84 | G91: 10.66 | H91: <=10,67 | I91: 1.019470193e-07 | J91: =COUNTIF($C$8:$C$107,H91)-SUM($J$8:J90) -> 0
A92: 85 | F92: 85 | G92: 10.68 | H92: =CONCATENATE("<=",G92) -> <=10,68 | I92: 4.207875639e-08 | J92: =COUNTIF($C$8:$C$107,H92)-SUM($J$8:J91) -> 0
A93: 86 | F93: 86 | G93: 10.7 | H93: <=10,71 | I93: 1.698655067e-08 | J93: =COUNTIF($C$8:$C$107,H93)-SUM($J$8:J92) -> 0
A94: 87 | F94: 87 | G94: 10.72 | H94: =CONCATENATE("<=",G94) -> <=10,72 | I94: 6.706585124e-09 | J94: =COUNTIF($C$8:$C$107,H94)-SUM($J$8:J93) -> 0
A95: 88 | F95: 88 | G95: 10.74 | H95: <=10,75 | I95: 2.589712917e-09 | J95: =COUNTIF($C$8:$C$107,H95)-SUM($J$8:J94) -> 0
A96: 89 | F96: 89 | G96: 10.76 | H96: =CONCATENATE("<=",G96) -> <=10,76 | I96: 9.780380344e-10 | J96: =COUNTIF($C$8:$C$107,H96)-SUM($J$8:J95) -> 0
A97: 90 | F97: 90 | G97: 10.78 | H97: <=10,79 | I97: 3.612549484e-10 | J97: =COUNTIF($C$8:$C$107,H97)-SUM($J$8:J96) -> 0
A98: 91 | F98: 91 | G98: 10.8 | H98: =CONCATENATE("<=",G98) -> <=10,8 | I98: 1.305045954e-10 | J98: =COUNTIF($C$8:$C$107,H98)-SUM($J$8:J97) -> 0
A99: 92 | F99: 92 | G99: 10.82 | H99: <=10,83 | I99: 4.610964132e-11 | J99: =COUNTIF($C$8:$C$107,H99)-SUM($J$8:J98) -> 0
A100: 93 | F100: 93 | G100: 10.84 | H100: =CONCATENATE("<=",G100) -> <=10,84 | I100: 1.593351607e-11 | J100: =COUNTIF($C$8:$C$107,H100)-SUM($J$8:J99) -> 0
A101: 94 | F101: 94 | G101: 10.86 | H101: <=10,87 | I101: 5.38499669e-12 | J101: =COUNTIF($C$8:$C$107,H101)-SUM($J$8:J100) -> 0
A102: 95 | F102: 95 | G102: 10.88 | H102: =CONCATENATE("<=",G102) -> <=10,88 | I102: 1.779972113e-12 | J102: =COUNTIF($C$8:$C$107,H102)-SUM($J$8:J101) -> 0
A103: 96 | F103: 96 | G103: 10.9 | H103: <=10,91 | I103: 5.754331733e-13 | J103: =COUNTIF($C$8:$C$107,H103)-SUM($J$8:J102) -> 0
A104: 97 | F104: 97 | G104: 10.92 | H104: =CONCATENATE("<=",G104) -> <=10,92 | I104: 1.819409807e-13 | J104: =COUNTIF($C$8:$C$107,H104)-SUM($J$8:J103) -> 0
A105: 98 | F105: 98 | G105: 10.94 | H105: <=10,95 | I105: 5.626264005e-14 | J105: =COUNTIF($C$8:$C$107,H105)-SUM($J$8:J104) -> 0
A106: 99 | F106: 99 | G106: 10.96 | H106: =CONCATENATE("<=",G106) -> <=10,96 | I106: 1.701624077e-14 | J106: =COUNTIF($C$8:$C$107,H106)-SUM($J$8:J105) -> 0
A107: 100 | F107: 100 | G107: 10.98 | H107: <=10,99 | I107: 5.033395731e-15 | J107: =COUNTIF($C$8:$C$107,H107)-SUM($J$8:J106) -> 0
A108: 101 | F108: 101 | G108: 11 | H108: =CONCATENATE("<=",G108) -> <=11 | I108: 1.45617131e-15 | J108: =COUNTIF($C$8:$C$107,H108)-SUM($J$8:J107) -> 0
A109: média | C109: =AVERAGE(C8:C108) -> 9.873173913
A110: desvio | C110: =STDEV(C8:C108)*((COUNT(C8:C108)-1)/(COUNT(C8:C108)-2))^0.5 -> 0.1341983444
A111: 0.95 | C111: =C109-1.96*C110 -> 9.610145158
C112: =C109+1.96*C110 -> 10.13620267
A113: 1300 ppm | C113: =C109-3*C110 -> 9.47057888
C114: =C109+3*C110 -> 10.27576895
A115: Cpk 1,67 | C115: =C109-5*C110 -> 9.202182191
C116: =C109+5*C110 -> 10.54416564
A118: CpI | C118: =($C$109-$D$5)/(3*$C$110) -> 0.9269213034 | E118: Resultado
A119: CpS | C119: =(-$C$109+$C$5)/(3*$C$110) -> 1.556964282 | E119: =IF(C120<1,"SISTEMA INCAPAZ",(IF(C120<1.33,"SISTEMA ACEITÁVEL","SISTEMA CAPAZ"))) -> SISTEMA INCAPAZ
A120: Cpk encontrado | C120: =MIN(C118:C119) -> 0.9269213034
A122: Avaliação
A123: CpK <1,33 | B123: Processo incapaz
A124: CpK >1 <1,67 | B124: Processo aceitável
A125: CpK >1,67 | B125: Processo capaz

Sheet Dados Cota C2
A1: Capabilidade do Processo
A2: Item:
A3: Caracteristica: | B3: Capabilidade cota C2 - ø (68,30 ± 0,20) mm
C4: LSE | D4: LIE | E4: Passo | F4: Divisões
C5: 68.5 | D5: 68.1 | E5: =(C5-D5)/F5 -> 0.008 | F5: 50 | G5: Curva normal
A6: 2009-07-24
A7: Cavidade | C7: Medida | F7: Número classes | G7: Classes | H7: Condição | I7: Normal | J7: Ocorrências
A8: 1 | C8: 68.3 | F8: 1 | G8: =D5-F5*E5/2 -> 67.9 | H8: =CONCATENATE("<=",G8+(G9-G8)/2) -> <=67,904 | I8: =NORMDIST(G8,$C$109,$C$110,FALSE) -> 7.894356538e-210 | J8: =COUNTIF($C$8:$C$108,H8) -> 0
A9: 2 | C9: 68.31 | F9: 2 | G9: =G8+$E$5 -> 67.908 | H9: =CONCATENATE("<=",G9+(G10-G9)/2) -> <=67,912 | I9: 1.147496509e-201 | J9: =COUNTIF($C$8:$C$107,H9)-J8 -> 0
A10: 3 | C10: 68.31 | F10: 3 | G10: =G9+$E$5 -> 67.916 | H10: <=67,92 | I10: 1.150411313e-193 | J10: =COUNTIF($C$8:$C$107,H10)-SUM($J$8:J9) -> 0
A11: 4 | C11: 68.3 | F11: 4 | G11: 67.924 | H11: <=67,928 | I11: 7.954667846e-186 | J11: =COUNTIF($C$8:$C$107,H11)-SUM($J$8:J10) -> 0
A12: 5 | C12: 68.3 | F12: 5 | G12: 67.932 | H12: <=67,936 | I12: 3.793657255e-178 | J12: =COUNTIF($C$8:$C$107,H12)-SUM($J$8:J11) -> 0
A13: 6 | C13: 68.3 | F13: 6 | G13: 67.94 | H13: <=67,944 | I13: 1.247846794e-170 | J13: =COUNTIF($C$8:$C$107,H13)-SUM($J$8:J12) -> 0
A14: 7 | C14: 68.3 | F14: 7 | G14: 67.948 | H14: <=67,952 | I14: 2.830945957e-163 | J14: =COUNTIF($C$8:$C$107,H14)-SUM($J$8:J13) -> 0
A15: 8 | C15: 68.3 | F15: 8 | G15: 67.956 | H15: <=67,96 | I15: 4.429646046e-156 | J15: =COUNTIF($C$8:$C$107,H15)-SUM($J$8:J14) -> 0
A16: 9 | C16: 68.3 | F16: 9 | G16: 67.964 | H16: <=67,968 | I16: 4.780503125e-149 | J16: =COUNTIF($C$8:$C$107,H16)-SUM($J$8:J15) -> 0
A17: 10 | C17: 68.3 | F17: 10 | G17: 67.972 | H17: <=67,9759999999999 | I17: 3.558322632e-142 | J17: =COUNTIF($C$8:$C$107,H17)-SUM($J$8:J16) -> 0
A18: 11 | C18: 68.3 | F18: 11 | G18: 67.98 | H18: <=67,984 | I18: 1.826771277e-135 | J18: =COUNTIF($C$8:$C$107,H18)-SUM($J$8:J17) -> 0
A19: 12 | C19: 68.3 | F19: 12 | G19: 67.988 | H19: <=67,9919999999999 | I19: 6.468300098e-129 | J19: =COUNTIF($C$8:$C$107,H19)-SUM($J$8:J18) -> 0
A20: 13 | C20: 68.3 | F20: 13 | G20: 67.996 | H20: <=67,9999999999999 | I20: 1.579658768e-122 | J20: =COUNTIF($C$8:$C$107,H20)-SUM($J$8:J19) -> 0
A21: 14 | C21: 68.31 | F21: 14 | G21: 68.004 | H21: <=68,0079999999999 | I21: 2.660746742e-116 | J21: =COUNTIF($C$8:$C$107,H21)-SUM($J$8:J20) -> 0
A22: 15 | C22: 68.31 | F22: 15 | G22: 68.012 | H22: <=68,0159999999999 | I22: 3.09108488e-110 | J22: =COUNTIF($C$8:$C$107,H22)-SUM($J$8:J21) -> 0
A23: 16 | C23: 68.34 | F23: 16 | G23: 68.02 | H23: <=68,0239999999999 | I23: 2.476768739e-104 | J23: =COUNTIF($C$8:$C$107,H23)-SUM($J$8:J22) -> 0
A24: 17 | C24: 68.31 | F24: 17 | G24: 68.028 | H24: <=68,0319999999999 | I24: 1.368759414e-98 | J24: =COUNTIF($C$8:$C$107,H24)-SUM($J$8:J23) -> 0
A25: 18 | C25: 68.34 | F25: 18 | G25: 68.036 | H25: <=68,0399999999999 | I25: 5.217181146e-93 | J25: =COUNTIF($C$8:$C$107,H25)-SUM($J$8:J24) -> 0
A26: 19 | C26: 68.3 | F26: 19 | G26: 68.044 | H26: <=68,0479999999999 | I26: 1.371550643e-87 | J26: =COUNTIF($C$8:$C$107,H26)-SUM($J$8:J25) -> 0
A27: 20 | C27: 68.3 | F27: 20 | G27: 68.052 | H27: <=68,0559999999999 | I27: 2.486880488e-82 | J27: =COUNTIF($C$8:$C$107,H27)-SUM($J$8:J26) -> 0
A28: 21 | C28: 68.3 | F28: 21 | G28: 68.06 | H28: <=68,0639999999999 | I28: 3.110033857e-77 | J28: =COUNTIF($C$8:$C$107,H28)-SUM($J$8:J27) -> 0
A29: 22 | C29: 68.32 | F29: 22 | G29: 68.068 | H29: <=68,0719999999999 | I29: 2.682516821e-72 | J29: =COUNTIF($C$8:$C$107,H29)-SUM($J$8:J28) -> 0
A30: 23 | C30: 68.3 | F30: 23 | G30: 68.076 | H30: <=68,0799999999999 | I30: 1.595831106e-67 | J30: =COUNTIF($C$8:$C$107,H30)-SUM($J$8:J29) -> 0
A31: 24 | C31: 68.31 | F31: 24 | G31: 68.084 | H31: <=68,0879999999999 | I31: 6.547847155e-63 | J31: =COUNTIF($C$8:$C$107,H31)-SUM($J$8:J30) -> 0
A32: 25 | C32: 68.3 | F32: 25 | G32: 68.092 | H32: <=68,0959999999999 | I32: 1.853007919e-58 | J32: =COUNTIF($C$8:$C$107,H32)-SUM($J$8:J31) -> 0
A33: 26 | C33: 68.31 | F33: 26 | G33: 68.1 | H33: <=68,1039999999999 | I33: 3.616788829e-54 | J33: =COUNTIF($C$8:$C$107,H33)-SUM($J$8:J32) -> 0
A34: 27 | C34: 68.3 | F34: 27 | G34: 68.108 | H34: <=68,1119999999999 | I34: 4.868959532e-50 | J34: =COUNTIF($C$8:$C$107,H34)-SUM($J$8:J33) -> 0
A35: 28 | C35: 68.3 | F35: 28 | G35: 68.116 | H35: <=68,1199999999999 | I35: 4.520810597e-46 | J35: =COUNTIF($C$8:$C$107,H35)-SUM($J$8:J34) -> 0
A36: 29 | C36: 68.34 | F36: 29 | G36: 68.124 | H36: <=68,1279999999999 | I36: 2.895100169e-42 | J36: =COUNTIF($C$8:$C$107,H36)-SUM($J$8:J35) -> 0
A37: 30 | C37: 68.31 | F37: 30 | G37: 68.132 | H37: <=68,1359999999999 | I37: 1.278727521e-38 | J37: =COUNTIF($C$8:$C$107,H37)-SUM($J$8:J36) -> 0
A38: 31 | C38: 68.3 | F38: 31 | G38: 68.14 | H38: <=68,1439999999999 | I38: 3.895467314e-35 | J38: =COUNTIF($C$8:$C$107,H38)-SUM($J$8:J37) -> 0
A39: 32 | C39: 68.31 | F39: 32 | G39: 68.148 | H39: <=68,1519999999998 | I39: 8.184803403e-32 | J39: =COUNTIF($C$8:$C$107,H39)-SUM($J$8:J38) -> 0
A40: 33 | C40: 68.3 | F40: 33 | G40: 68.156 | H40: <=68,1599999999999 | I40: 1.186107562e-28 | J40: =COUNTIF($C$8:$C$107,H40)-SUM($J$8:J39) -> 0
A41: 34 | C41: 68.3 | F41: 34 | G41: 68.164 | H41: <=68,1679999999998 | I41: 1.185514943e-25 | J41: =COUNTIF($C$8:$C$107,H41)-SUM($J$8:J40) -> 0
A42: 35 | C42: 68.31 | F42: 35 | G42: 68.172 | H42: <=68,1759999999998 | I42: 8.172541322e-23 | J42: =COUNTIF($C$8:$C$107,H42)-SUM($J$8:J41) -> 0
A43: 36 | C43: 68.3 | F43: 36 | G43: 68.18 | H43: <=68,1839999999998 | I43: 3.885745502e-20 | J43: =COUNTIF($C$8:$C$107,H43)-SUM($J$8:J42) -> 0
A44: 37 | C44: 68.32 | F44: 37 | G44: 68.188 | H44: <=68,1919999999998 | I44: 1.274261952e-17 | J44: =COUNTIF($C$8:$C$107,H44)-SUM($J$8:J43) -> 0
A45: 38 | C45: 68.31 | F45: 38 | G45: 68.196 | H45: <=68,1999999999998 | I45: 2.882107752e-15 | J45: =COUNTIF($C$8:$C$107,H45)-SUM($J$8:J44) -> 0
A46: 39 | C46: 68.32 | F46: 39 | G46: 68.204 | H46: <=68,2079999999998 | I46: 4.496026336e-13 | J46: =COUNTIF($C$8:$C$107,H46)-SUM($J$8:J45) -> 0
A47: 40 | C47: 68.3 | F47: 40 | G47: 68.212 | H47: <=68,2159999999998 | I47: 4.837429118e-11 | J47: =COUNTIF($C$8:$C$107,H47)-SUM($J$8:J46) -> 0
A48: 41 | C48: 68.3 | F48: 41 | G48: 68.22 | H48: <=68,2239999999998 | I48: 3.589777387e-09 | J48: =COUNTIF($C$8:$C$107,H48)-SUM($J$8:J47) -> 0
A49: 42 | C49: 68.31 | F49: 42 | G49: 68.228 | H49: <=68,2319999999998 | I49: 1.837331647e-07 | J49: =COUNTIF($C$8:$C$107,H49)-SUM($J$8:J48) -> 0
A50: 43 | C50: 68.33 | F50: 43 | G50: 68.236 | H50: <=68,2399999999998 | I50: 6.485966909e-06 | J50: =COUNTIF($C$8:$C$107,H50)-SUM($J$8:J49) -> 0
A51: 44 | C51: 68.33 | F51: 44 | G51: 68.244 | H51: <=68,2479999999998 | I51: 0.0001579170552 | J51: =COUNTIF($C$8:$C$107,H51)-SUM($J$8:J50) -> 0
A52: 45 | C52: 68.35 | F52: 45 | G52: 68.252 | H52: <=68,2559999999998 | I52: 0.002651859313 | J52: =COUNTIF($C$8:$C$107,H52)-SUM($J$8:J51) -> 0
A53: 46 | C53: 68.3 | F53: 46 | G53: 68.26 | H53: <=68,2639999999998 | I53: 0.03071418942 | J53: =COUNTIF($C$8:$C$107,H53)-SUM($J$8:J52) -> 0
A54: 47 | C54: 68.3 | F54: 47 | G54: 68.268 | H54: <=68,2719999999998 | I54: 0.2453549202 | J54: =COUNTIF($C$8:$C$107,H54)-SUM($J$8:J53) -> 0
A55: 48 | C55: 68.31 | F55: 48 | G55: 68.276 | H55: <=68,2799999999998 | I55: 1.351816117 | J55: =COUNTIF($C$8:$C$107,H55)-SUM($J$8:J54) -> 0
A56: 49 | F56: 49 | G56: 68.284 | H56: <=68,2879999999998 | I56: 5.136976788 | J56: =COUNTIF($C$8:$C$107,H56)-SUM($J$8:J55) -> 0
A57: 50 | F57: 50 | G57: 68.292 | H57: <=68,2959999999998 | I57: 13.46370917 | J57: =COUNTIF($C$8:$C$107,H57)-SUM($J$8:J56) -> 0
A58: 51 | F58: 51 | G58: 68.3 | H58: =CONCATENATE("<=",G58) -> <=68,2999999999998 | I58: 24.33822913 | J58: =COUNTIF($C$8:$C$107,H58)-SUM($J$8:J57) -> 0
A59: 52 | F59: 52 | G59: 68.308 | H59: <=68,3119999999998 | I59: 30.34452642 | J59: =COUNTIF($C$8:$C$107,H59)-SUM($J$8:J58) -> 39
A60: 53 | F60: 53 | G60: 68.316 | H60: =CONCATENATE("<=",G60) -> <=68,3159999999998 | I60: 26.09389362 | J60: =COUNTIF($C$8:$C$107,H60)-SUM($J$8:J59) -> 0
A61: 54 | F61: 54 | G61: 68.324 | H61: <=68,3279999999997 | I61: 15.47620758 | J61: =COUNTIF($C$8:$C$107,H61)-SUM($J$8:J60) -> 3
A62: 55 | F62: 55 | G62: 68.332 | H62: =CONCATENATE("<=",G62) -> <=68,3319999999998 | I62: 6.330781723 | J62: =COUNTIF($C$8:$C$107,H62)-SUM($J$8:J61) -> 2
A63: 56 | F63: 56 | G63: 68.34 | H63: <=68,3439999999997 | I63: 1.786147289 | J63: =COUNTIF($C$8:$C$107,H63)-SUM($J$8:J62) -> 3
A64: 57 | F64: 57 | G64: 68.348 | H64: =CONCATENATE("<=",G64) -> <=68,3479999999997 | I64: 0.3475716395 | J64: =COUNTIF($C$8:$C$107,H64)-SUM($J$8:J63) -> 0
A65: 58 | F65: 58 | G65: 68.356 | H65: <=68,3599999999997 | I65: 0.04664859108 | J65: =COUNTIF($C$8:$C$107,H65)-SUM($J$8:J64) -> 1
A66: 59 | F66: 59 | G66: 68.364 | H66: =CONCATENATE("<=",G66) -> <=68,3639999999997 | I66: 0.004318171287 | J66: =COUNTIF($C$8:$C$107,H66)-SUM($J$8:J65) -> 0
A67: 60 | F67: 60 | G67: 68.372 | H67: <=68,3759999999997 | I67: 0.0002756946473 | J67: =COUNTIF($C$8:$C$107,H67)-SUM($J$8:J66) -> 0
A68: 61 | F68: 61 | G68: 68.38 | H68: =CONCATENATE("<=",G68) -> <=68,3799999999997 | I68: 1.21401468e-05 | J68: =COUNTIF($C$8:$C$107,H68)-SUM($J$8:J67) -> 0
A69: 62 | F69: 62 | G69: 68.388 | H69: <=68,3919999999997 | I69: 3.68711495e-07 | J69: =COUNTIF($C$8:$C$107,H69)-SUM($J$8:J68) -> 0
A70: 63 | F70: 63 | G70: 68.396 | H70: =CONCATENATE("<=",G70) -> <=68,3959999999997 | I70: 7.723542693e-09 | J70: =COUNTIF($C$8:$C$107,H70)-SUM($J$8:J69) -> 0
A71: 64 | F71: 64 | G71: 68.404 | H71: <=68,4079999999997 | I71: 1.115869894e-10 | J71: =COUNTIF($C$8:$C$107,H71)-SUM($J$8:J70) -> 0
A72: 65 | F72: 65 | G72: 68.412 | H72: =CONCATENATE("<=",G72) -> <=68,4119999999997 | I72: =NORMDIST(G72,$C$109,$C$110,FALSE) -> 1.111930659e-12 | J72: =COUNTIF($C$8:$C$107,H72)-SUM($J$8:J71) -> 0
A73: 66 | F73: 66 | G73: 68.42 | H73: =CONCATENATE("<=",G73+(G74-G73)/2) -> <=68,4239999999997 | I73: 7.642034328e-15 | J73: =COUNTIF($C$8:$C$107,H73)-SUM($J$8:J72) -> 0
A74: 67 | F74: 67 | G74: =G73+$E$5 -> 68.428 | H74: =CONCATENATE("<=",G74) -> <=68,4279999999997 | I74: 3.622491696e-17 | J74: =COUNTIF($C$8:$C$107,H74)-SUM($J$8:J73) -> 0
A75: 68 | F75: 68 | G75: 68.436 | H75: <=68,4399999999997 | I75: 1.184330593e-19 | J75: =COUNTIF($C$8:$C$107,H75)-SUM($J$8:J74) -> 0
A76: 69 | F76: 69 | G76: 68.444 | H76: =CONCATENATE("<=",G76) -> <=68,4439999999997 | I76: 2.670580247e-22 | J76: =COUNTIF($C$8:$C$107,H76)-SUM($J$8:J75) -> 0
A77: 70 | F77: 70 | G77: 68.452 | H77: <=68,4559999999997 | I77: 4.153416194e-25 | J77: =COUNTIF($C$8:$C$107,H77)-SUM($J$8:J76) -> 0
A78: 71 | F78: 71 | G78: 68.46 | H78: =CONCATENATE("<=",G78) -> <=68,4599999999997 | I78: 4.45525336e-28 | J78: =COUNTIF($C$8:$C$107,H78)-SUM($J$8:J77) -> 0
A79: 72 | F79: 72 | G79: 68.468 | H79: <=68,4719999999997 | I79: 3.296146423e-31 | J79: =COUNTIF($C$8:$C$107,H79)-SUM($J$8:J78) -> 0
A80: 73 | F80: 73 | G80: 68.476 | H80: =CONCATENATE("<=",G80) -> <=68,4759999999997 | I80: 1.681929239e-34 | J80: =COUNTIF($C$8:$C$107,H80)-SUM($J$8:J79) -> 0
A81: 74 | F81: 74 | G81: 68.484 | H81: <=68,4879999999997 | I81: 5.919378085e-38 | J81: =COUNTIF($C$8:$C$107,H81)-SUM($J$8:J80) -> 0
A82: 75 | F82: 75 | G82: 68.492 | H82: =CONCATENATE("<=",G82) -> <=68,4919999999997 | I82: 1.436850472e-41 | J82: =COUNTIF($C$8:$C$107,H82)-SUM($J$8:J81) -> 0
A83: 76 | F83: 76 | G83: 68.5 | H83: <=68,5039999999996 | I83: 2.405548984e-45 | J83: =COUNTIF($C$8:$C$107,H83)-SUM($J$8:J82) -> 0
A84: 77 | F84: 77 | G84: 68.508 | H84: =CONCATENATE("<=",G84) -> <=68,5079999999997 | I84: 2.777691243e-49 | J84: =COUNTIF($C$8:$C$107,H84)-SUM($J$8:J83) -> 0
A85: 78 | F85: 78 | G85: 68.516 | H85: <=68,5199999999996 | I85: 2.212182078e-53 | J85: =COUNTIF($C$8:$C$107,H85)-SUM($J$8:J84) -> 0
A86: 79 | F86: 79 | G86: 68.524 | H86: =CONCATENATE("<=",G86) -> <=68,5239999999996 | I86: 1.215136047e-57 | J86: =COUNTIF($C$8:$C$107,H86)-SUM($J$8:J85) -> 0
A87: 80 | F87: 80 | G87: 68.532 | H87: <=68,5359999999996 | I87: 4.603584026e-62 | J87: =COUNTIF($C$8:$C$107,H87)-SUM($J$8:J86) -> 0
A88: 81 | F88: 81 | G88: 68.54 | H88: =CONCATENATE("<=",G88) -> <=68,5399999999996 | I88: 1.202913446e-66 | J88: =COUNTIF($C$8:$C$107,H88)-SUM($J$8:J87) -> 0
A89: 82 | F89: 82 | G89: 68.548 | H89: <=68,5519999999996 | I89: 2.167902867e-71 | J89: =COUNTIF($C$8:$C$107,H89)-SUM($J$8:J88) -> 0
A90: 83 | F90: 83 | G90: 68.556 | H90: =CONCATENATE("<=",G90) -> <=68,5559999999996 | I90: 2.694712238e-76 | J90: =COUNTIF($C$8:$C$107,H90)-SUM($J$8:J89) -> 0
A91: 84 | F91: 84 | G91: 68.564 | H91: <=68,5679999999996 | I91: 2.310213434e-81 | J91: =COUNTIF($C$8:$C$107,H91)-SUM($J$8:J90) -> 0
A92: 85 | F92: 85 | G92: 68.572 | H92: =CONCATENATE("<=",G92) -> <=68,5719999999996 | I92: 1.366025952e-86 | J92: =COUNTIF($C$8:$C$107,H92)-SUM($J$8:J91) -> 0
A93: 86 | F93: 86 | G93: 68.58 | H93: <=68,5839999999996 | I93: 5.570997076e-92 | J93: =COUNTIF($C$8:$C$107,H93)-SUM($J$8:J92) -> 0
A94: 87 | F94: 87 | G94: 68.588 | H94: =CONCATENATE("<=",G94) -> <=68,5879999999996 | I94: 1.567018219e-97 | J94: =COUNTIF($C$8:$C$107,H94)-SUM($J$8:J93) -> 0
A95: 88 | F95: 88 | G95: 68.596 | H95: <=68,5999999999996 | I95: 3.040060988e-103 | J95: =COUNTIF($C$8:$C$107,H95)-SUM($J$8:J94) -> 0
A96: 89 | F96: 89 | G96: 68.604 | H96: =CONCATENATE("<=",G96) -> <=68,6039999999996 | I96: 4.067782108e-109 | J96: =COUNTIF($C$8:$C$107,H96)-SUM($J$8:J95) -> 0
A97: 90 | F97: 90 | G97: 68.612 | H97: <=68,6159999999996 | I97: 3.754051293e-115 | J97: =COUNTIF($C$8:$C$107,H97)-SUM($J$8:J96) -> 0
A98: 91 | F98: 91 | G98: 68.62 | H98: =CONCATENATE("<=",G98) -> <=68,6199999999996 | I98: 2.389515532e-121 | J98: =COUNTIF($C$8:$C$107,H98)-SUM($J$8:J97) -> 0
A99: 92 | F99: 92 | G99: 68.628 | H99: <=68,6319999999996 | I99: 1.049026957e-127 | J99: =COUNTIF($C$8:$C$107,H99)-SUM($J$8:J98) -> 0
A100: 93 | F100: 93 | G100: 68.636 | H100: =CONCATENATE("<=",G100) -> <=68,6359999999996 | I100: 3.176366259e-134 | J100: =COUNTIF($C$8:$C$107,H100)-SUM($J$8:J99) -> 0
A101: 94 | F101: 94 | G101: 68.644 | H101: <=68,6479999999996 | I101: 6.633483218e-141 | J101: =COUNTIF($C$8:$C$107,H101)-SUM($J$8:J100) -> 0
A102: 95 | F102: 95 | G102: 68.652 | H102: =CONCATENATE("<=",G102) -> <=68,6519999999996 | I102: 9.55476105e-148 | J102: =COUNTIF($C$8:$C$107,H102)-SUM($J$8:J101) -> 0
A103: 96 | F103: 96 | G103: 68.66 | H103: <=68,6639999999996 | I103: 9.492162431e-155 | J103: =COUNTIF($C$8:$C$107,H103)-SUM($J$8:J102) -> 0
A104: 97 | F104: 97 | G104: 68.668 | H104: =CONCATENATE("<=",G104) -> <=68,6679999999996 | I104: 6.503956488e-162 | J104: =COUNTIF($C$8:$C$107,H104)-SUM($J$8:J103) -> 0
A105: 98 | F105: 98 | G105: 68.676 | H105: <=68,6799999999996 | I105: 3.073669928e-169 | J105: =COUNTIF($C$8:$C$107,H105)-SUM($J$8:J104) -> 0
A106: 99 | F106: 99 | G106: 68.684 | H106: =CONCATENATE("<=",G106) -> <=68,6839999999996 | I106: 1.00185291e-176 | J106: =COUNTIF($C$8:$C$107,H106)-SUM($J$8:J105) -> 0
A107: 100 | F107: 100 | G107: 68.692 | H107: <=68,6959999999995 | I107: 2.252256428e-184 | J107: =COUNTIF($C$8:$C$107,H107)-SUM($J$8:J106) -> 0
A108: 101 | F108: 101 | G108: 68.7 | H108: =CONCATENATE("<=",G108) -> <=68,6999999999995 | I108: 3.492197854e-192 | J108: =COUNTIF($C$8:$C$107,H108)-SUM($J$8:J107) -> 0
A109: média | C109: =AVERAGE(C8:C108) -> 68.30875
A110: desvio | C110: =STDEV(C8:C108)*((COUNT(C8:C108)-1)/(COUNT(C8:C108)-2))^0.5 -> 0.01312564698
A111: 0.95 | C111: =C109-1.96*C110 -> 68.28302373
C112: =C109+1.96*C110 -> 68.33447627
A113: 1300 ppm | C113: =C109-3*C110 -> 68.26937306
C114: =C109+3*C110 -> 68.34812694
A115: Cpk 1,67 | C115: =C109-5*C110 -> 68.24312177
C116: =C109+5*C110 -> 68.37437823
A118: CpI | C118: =($C$109-$D$5)/(3*$C$110) -> 5.301325979 | E118: Resultado
A119: CpS | C119: =(-$C$109+$C$5)/(3*$C$110) -> 4.856903442 | E119: =IF(C120<1,"SISTEMA INCAPAZ",(IF(C120<1.33,"SISTEMA ACEITÁVEL","SISTEMA CAPAZ"))) -> SISTEMA CAPAZ
A120: Cpk encontrado | C120: =MIN(C118:C119) -> 4.856903442
A122: Avaliação
A123: CpK <1,33 | B123: Processo incapaz
A124: CpK >1 <1,67 | B124: Processo aceitável
A125: CpK >1,67 | B125: Processo capaz
